[Event "Titled Tuesday Blitz March 21 Late 2023"]
[White "Jesusesmifuerza"]
[Black "lisjakzlatko1"]
[WhiteElo "2048"]
[BlackElo "2157"]
[Result "0-1"]
[Round "11"]
[TimeControl "180+2"]
[Date "2023.03.21"]
[WhiteClock "0:00:04"]
[BlackClock "0:00:23"]

1. d4 {[%clk 0:03:00]}  d6 {[%clk 0:02:58]} 2. Nc3 {[%clk 0:02:58]}  Nf6 {[%clk 0:02:55]} 3. e4 {[%clk 0:02:58]}  c6 {[%clk 0:02:55]} 4. f4 {[%clk 0:02:54]}  Qa5 {[%clk 0:02:51]} 5. Bd3 {[%clk 0:02:54]}  e5 {[%clk 0:02:50]} 6. Nf3 {[%clk 0:02:33]}  Nbd7 {[%clk 0:02:47]} 7. dxe5 {[%clk 0:02:26]}  dxe5 {[%clk 0:02:46]} 8. f5 {[%clk 0:02:25]}  b5 {[%clk 0:02:41]} 9. O-O {[%clk 0:02:19]}  Be7 {[%clk 0:02:37]} 10. Bd2 {[%clk 0:02:07]}  Qb6+ {[%clk 0:02:25]} 11. Kh1 {[%clk 0:02:05]}  O-O {[%clk 0:02:25]} 12. Qe2 {[%clk 0:02:02]}  Re8 {[%clk 0:02:15]} 13. Be3 {[%clk 0:01:55]}  Bc5 {[%clk 0:02:15]} 14. Bxc5 {[%clk 0:01:52]}  Nxc5 {[%clk 0:02:15]} 15. b4 {[%clk 0:01:42]}  Nxd3 {[%clk 0:02:09]} 16. cxd3 {[%clk 0:01:43]}  a5 {[%clk 0:02:01]} 17. a3 {[%clk 0:01:42]}  c5 {[%clk 0:01:55]} 18. bxc5 {[%clk 0:01:28]}  Qxc5 {[%clk 0:01:54]} 19. Rfc1 {[%clk 0:01:28]}  Qb6 {[%clk 0:01:48]} 20. Rab1 {[%clk 0:01:21]}  Bd7 {[%clk 0:01:38]} 21. Qd2 {[%clk 0:01:03]}  b4 {[%clk 0:01:34]} 22. axb4 {[%clk 0:00:58]}  axb4 {[%clk 0:01:33]} 23. Ne2 {[%clk 0:00:44]}  Reb8 {[%clk 0:01:18]} 24. Rb2 {[%clk 0:00:40]}  Ng4 {[%clk 0:01:13]} 25. d4 {[%clk 0:00:37]}  Ra3 {[%clk 0:01:03]} 26. Kg1 {[%clk 0:00:30]}  f6 {[%clk 0:00:58]} 27. Rcb1 {[%clk 0:00:21]}  b3 {[%clk 0:00:53]} 28. h3 {[%clk 0:00:20]}  Nh6 {[%clk 0:00:50]} 29. Kh2 {[%clk 0:00:21]}  exd4 {[%clk 0:00:45]} 30. Qxd4 {[%clk 0:00:22]}  Qc7+ {[%clk 0:00:44]} 31. Kh1 {[%clk 0:00:18]}  Nf7 {[%clk 0:00:40]} 32. Rd1 {[%clk 0:00:15]}  Bb5 {[%clk 0:00:37]} 33. Nc3 {[%clk 0:00:11]}  Ba6 {[%clk 0:00:34]} 34. Qd5 {[%clk 0:00:09]}  Bc4 {[%clk 0:00:29]} 35. Qd2 {[%clk 0:00:08]}  Qg3 {[%clk 0:00:25]} 36. Nd4 {[%clk 0:00:04]}  Rd8 {[%clk 0:00:23]} 0-1


[Site "https://www.chess.com"]

[Event "Titled Tuesday Blitz March 21 Late 2023"]
[White "Marcolino, Daniel Mattos"]
[Black "Da Silva Junior, Sediney Mari"]
[WhiteFideId "2106841"]
[BlackFideId "2132079"]
[WhiteElo "2078"]
[BlackElo "1977"]
[Result "1-0"]
[Round "11"]
[TimeControl "180+2"]
[Date "2023.03.21"]
[WhiteClock "0:01:29"]
[BlackClock "0:02:03"]

1. d4 {[%clk 0:03:00]}  d5 {[%clk 0:02:58]} 2. Nf3 {[%clk 0:03:00]}  Nf6 {[%clk 0:02:58]} 3. c4 {[%clk 0:03:00]}  c6 {[%clk 0:02:58]} 4. Qc2 {[%clk 0:02:59]}  Bg4 {[%clk 0:02:57]} 5. Ne5 {[%clk 0:02:59]}  Bh5 {[%clk 0:02:56]} 6. cxd5 {[%clk 0:02:53]}  cxd5 {[%clk 0:02:54]} 7. Nc3 {[%clk 0:02:53]}  a6 {[%clk 0:02:53]} 8. Qb3 {[%clk 0:02:53]}  Nbd7 {[%clk 0:02:47]} 9. Qxb7 {[%clk 0:02:22]}  Nxe5 {[%clk 0:02:39]} 10. dxe5 {[%clk 0:02:23]}  Rb8 {[%clk 0:02:35]} 11. Qxa6 {[%clk 0:02:21]}  Nd7 {[%clk 0:02:35]} 12. e3 {[%clk 0:02:15]}  e6 {[%clk 0:02:34]} 13. Bb5 {[%clk 0:02:09]}  Bb4 {[%clk 0:02:34]} 14. O-O {[%clk 0:02:07]}  Bxc3 {[%clk 0:02:34]} 15. bxc3 {[%clk 0:02:08]}  O-O {[%clk 0:02:34]} 16. Ba3 {[%clk 0:02:02]}  Re8 {[%clk 0:02:31]} 17. Rab1 {[%clk 0:01:58]}  Rb6 {[%clk 0:02:31]} 18. Qa4 {[%clk 0:01:58]}  Rb7 {[%clk 0:02:22]} 19. Bc6 {[%clk 0:01:53]}  Rc7 {[%clk 0:02:17]} 20. Bd6 {[%clk 0:01:51]}  Rxc6 {[%clk 0:02:12]} 21. Qxc6 {[%clk 0:01:52]}  Nf8 {[%clk 0:02:08]} 22. Rb8 {[%clk 0:01:41]}  Qxb8 {[%clk 0:02:03]} 23. Bxb8 {[%clk 0:01:41]}  Rxb8 {[%clk 0:02:04]} 24. h3 {[%clk 0:01:36]}  Be2 {[%clk 0:02:04]} 25. Ra1 {[%clk 0:01:32]}  Bc4 {[%clk 0:02:03]} 26. a4 {[%clk 0:01:31]}  Ng6 {[%clk 0:02:03]} 27. a5 {[%clk 0:01:31]}  Nxe5 {[%clk 0:02:03]} 28. Qc7 {[%clk 0:01:29]} 1-0